{"text_format":"1","workbook":"xlsx","n_sheets":19,"sheets":["Anykščiai","Biržai","Druskininkai","Dubrava","Ignalina","Jurbarkas","Kazlų Rūda","Kretinga","Kuršėnai","Panevėžys","Prienai","Radviliškis","Raseiniai","Rokiškis","Šilutė","Telšiai","Trakai","Ukmergės","Varėna"],"not_rendered":{"charts":0,"images":0,"macros":0,"external_links":0,"defined_names":0,"comments":0,"pivot_tables":0},"unopened":[],"bounds":{"document_bytes":16777216,"sheet_cells":100000,"rows_first":2000,"rows_last":500,"rows_between":2000,"halvings":0,"cell_chars":16384,"cell_head_chars":4096},"cells_cut":0,"cells_raw":0,"read":"whole","date_system":"1900"}

{"sheet":"Anykščiai","index":0,"n_rows":29,"n_cols":13,"rows_kept":29,"cut":false,"hidden":false,"merged":[[0,0,0,19],[14,0,15,0],[14,1,15,1],[14,2,15,2],[14,3,14,12],[1,3,1,5],[23,0,24,0],[23,1,24,1],[25,0,25,2],[23,2,23,3],[3,0,3,2]]}
["VĮ Valstybinių miškų urėdijos Anykščių regioninio padalinio informacija apie perkamus rangos paslaugų kiekius 2025 metams"]
["Eil. ","Paslaugų grupės ir paslaugų pavadinimai",null,"Preliminarios paslaugų apimtys"]
[1,"Želdaviečių paruošimas miškų sodinimui, želdinių ir žėlinių priežiūra, jaunuolynų ugdymas, griovių šlaitų ir pagriovių, pakelių, kvartalinių ir ribinių linijų priežiūra","Mato vnt.","  Kavarsko girininkija 1"," Mickūnų  girininkija 1"," Troškūnų girininkija 1"]
["Pirkimo objekto dalies numeris",null,null,1,2,3]
["1.","Želdavietės paruošimas miško sodmenų sodinimui šalinant nepageidaujamus medžius, krūmus, žolinę augmeniją","ha"]
["2.","Medynų ir krūmynų pertvarkymo kirtimai šalinant nepageidaujamus medžius, krūmus, žolinę augmeniją ","ha"]
["3.","Miško želdinių ir žėlinių  priežiūra šalinant žabus ir žolinę augmeniją","ha",35,null,40]
["4.","Jaunuolynų ugdymas ir/ar retinimo kirtimai, negaminant likvidinės medienos ","ha",null,16]
["5.","Griovių šlaitų ir pagriovių priežiūra","ha"]
["6.","Pakelių priežiūra","km"]
["7.","kvartalinių ir ribinių linijų priežūra","km"]
[null,null,null,{"$f":"+D5*301+D7*263+D8*299+D9*301+D10*53+D11*126+D6*301","v":9205},{"$f":"+E5*301+E7*263+E8*299+E9*301+E10*53+E11*126+E6*301","v":4784},10520]
[null,null,null,{"$f":"+D12*3*1.3","v":35899.5},{"$f":"+E12*3*1.3","v":18657.600000000002},41028]
[]
["3.","Miško sodmenų sodinimas, želdinių ir žėlinių medelių ir jų liemenų apsauga nuo kanopinių žvėrių bei vabzdžių daromos žalos  ","Mato vnt.","Preliminarios paslaugų apimtys"]
[null,null,null," Kuktiškių girininkija 1"," Kuktiškių girininkija 2"," Troškūnų girininkija 2"," Mickūnų girininkija 2"," Kavarsko girininkija 2","Vyžuonų  girininkija 1","Vyžuonų   girininkija 2"," Kuktiškių girininkija 3","Kuktiškių girininkija 4","Dubingių  girininkija "]
[null,"Pirkimo objekto numeris",null,4,5,6,7,8,9,10,11,12,13]
["8.","Miško atkūrimas, įveisimas ir atsodinimas (medelių ir krūmų sodinimas)","tūkst. vnt.",35,35]
["9.","Želdinių, žėlinių apsauga nuo kanopinių žvėrių bei vabzdžių daromos žalos ","tūkst. vnt.",null,null,28,96,61,100,96,64,64,85.7]
["10.","Želdinių, žėlinių ir medelių kamienų apsauga nuo kanopinių žvėrių daromos žalos","tūkst. vnt.",null,null,null,null,1,4.5,4.5,4.2,4.2,6.2]
[null,null,null,{"$f":"+D18*178+D19*27+D20*390","v":6230},{"$f":"+E18*178+E19*27+E20*390","v":6230},756,2592,2037,4455,4347,3366,3366,4731.8999999999996]
[null,null,null,{"$f":"+D21*3*1.3","v":24297},{"$f":"+E21*3*1.3","v":24297},2948.4,10108.800000000001,7944.3,17374.5,16953.3,13127.4,13127.4,18454.41]
[]
["6.","Šiukšlių rinkimo paslaugos","Preliminarios paslaugų apimtys"]
[null,null,"Mato vnt.","Anykščių RP teritorija"]
["Pirkimo objekto dalies numeris",null,null,14]
["12.","Šiukšlių rinkimo paslaugos","val.",350]
[null,null,null,{"$f":"+D27*10","v":3500}]
[null,null,null,{"$f":"+D28*3*1.3","v":13650}]

{"sheet":"Biržai","index":1,"n_rows":36,"n_cols":10,"rows_kept":36,"cut":false,"hidden":false,"merged":[[16,0,16,2],[23,0,24,0],[23,1,24,1],[0,0,0,8],[3,0,3,2],[14,0,15,0],[14,1,15,1],[14,2,15,2],[14,3,14,8],[1,3,1,9],[32,0,32,2],[23,2,23,3],[30,2,30,3],[25,0,25,2],[30,0,31,0],[30,1,31,1]]}
["VĮ Valstybinių miškų urėdijos Biržų regioninio padalinio informacija apie perkamus rangos paslaugų kiekius 2025 metams"]
["Eil. ","Paslaugų grupės ir paslaugų pavadinimai",null,"Preliminarios paslaugų apimtys"]
[1,"Želdaviečių paruošimas miškų sodinimui, želdinių ir žėlinių priežiūra, jaunuolynų ugdymas, griovių šlaitų ir pagriovių, pakelių, kvartalinių ir ribinių linijų priežiūra","Mato vnt.","Linkuvos girininkija 1","Pasvalio girininkija","Kriklinių girininkija","Latvelių girininkija 1","Spalviškių girininkija 1","Būginių girininkija 1","Visa RP teritorija"]
["Pirkimo objekto dalies numeris",null,null,15,16,17,18,19,20,21]
["1.","Želdavietės paruošimas miško sodmenų sodinimui šalinant nepageidaujamus medžius, krūmus, žolinę augmeniją","ha",0,0,0,0,0,0,0]
["2.","Medynų ir krūmynų pertvarkymo kirtimai šalinant nepageidaujamus medžius, krūmus, žolinę augmeniją ",null,0,0,0,0,0,0,7]
["3.","Miško želdinių ir žėlinių  priežiūra šalinant žabus ir žolinę augmeniją","ha",75,55,15,30,15,15,0]
["4.","Jaunuolynų ugdymas ir/ar retinimo kirtimai, negaminant likvidinės medienos ","ha",50,35,10,20,10,10,0]
["5.","Griovių šlaitų ir pagriovių priežiūra","ha",0,0,0,0,0,0,0]
["6.","Pakelių priežiūra","km",0,0,0,0,0,0,0]
["7.","kvartalinių ir ribinių linijų priežūra","km",10,10,5,5,5,5,0]
[null,null,null,{"$f":"+D5*301+D7*263+D8*299+D9*301+D10*53+D11*126+D6*301","v":35935},{"$f":"+E5*301+E7*263+E8*299+E9*301+E10*53+E11*126+E6*301","v":26190},7565,14500,7565,7565,2107]
[null,null,null,{"$f":"+D12*3*1.3","v":140146.5},{"$f":"+E12*3*1.3","v":102141},29503.5,56550,29503.5,29503.5,8217.3000000000011]
[]
["3.","Miško sodmenų sodinimas, želdinių ir žėlinių medelių ir jų liemenų apsauga nuo kanopinių žvėrių bei vabzdžių daromos žalos  ","Mato vnt.","Preliminarios paslaugų apimtys"]
[null,null,null,"Kriklinių, Pasvalio girininkijos","Linkuvos girininkija 2","Būginių girininkija 2","Spalviškių girininkija 2","Latvelių girininkija 2","Latvelių, Spalviškių, Būginių  girininkijos"]
["Pirkimo objekto dalies numeris",null,null,22,23,24,25,26,27]
["8.","Miško atkūrimas, įveisimas ir atsodinimas (medelių ir krūmų sodinimas)","tūkst. vnt.",110,0,0,0,0,0]
["9.","Želdinių, žėlinių apsauga nuo kanopinių žvėrių bei vabzdžių daromos žalos ","tūkst. vnt.",0,135,200,140,130,0]
["10.","Želdinių, žėlinių ir medelių kamienų apsauga nuo kanopinių žvėrių daromos žalos","tūkst. vnt.",0,0,0,0,0,5]
[null,null,null,{"$f":"+D18*178+D19*27+D20*390","v":19580},{"$f":"+E18*178+E19*27+E20*390","v":3645},5400,3780,3510,1950]
[null,null,null,{"$f":"+D21*3*1.3","v":76362},{"$f":"+E21*3*1.3","v":14215.5},21060,14742,13689,7605]
[]
["4.","Želdinių, žėlinių apsauga nuo kanopinių žvėrių daromos žalos, tveriant vielos tinklo tvorą","Preliminarios paslaugų apimtys"]
[null,null,"Mato vnt.","Biržų RP teritorija 2"]
["Pirkimo objekto dalies numeris",null,null,28]
["11.","Želdinių, žėlinių apsauga nuo kanopinių žvėrių daromos žalos, tveriant vielos tinklo tvorą ","m",4500]
[null,null,null,{"$f":"+D27*1.85","v":8325}]
[null,null,null,{"$f":"+D28*3*1.3","v":32467.5}]
[]
["6.","Šiukšlių rinkimo paslaugos","Preliminarios paslaugų apimtys"]
[null,null,"Mato vnt.","Biržų RP teritorija 3"]
["Pirkimo objekto dalies numeris",null,null,29]
["12.","Šiukšlių rinkimo paslaugos","val.",350]
[null,null,null,{"$f":"+D34*10","v":3500}]
[null,null,null,{"$f":"+D35*3*1.3","v":13650}]

{"sheet":"Druskininkai","index":2,"n_rows":20,"n_cols":6,"rows_kept":20,"cut":false,"hidden":false,"merged":[[1,2,1,3],[14,2,14,5],[0,0,0,11],[3,0,3,2],[16,0,16,2],[14,0,15,0],[14,1,15,1]]}
["VĮ Valstybinių miškų urėdijos Druskininkų regioninio padalinio informacija apie perkamus rangos paslaugų kiekius 2025 m."]
["Eil. ","Paslaugų grupės ir paslaugų pavadinimai","Preliminarios paslaugų apimtys"]
[1,"Želdaviečių paruošimas miškų sodinimui, želdinių ir žėlinių priežiūra, jaunuolynų ugdymas, griovių šlaitų ir pagriovių, pakelių, kvartalinių ir ribinių linijų priežiūra","Mato vnt.","Krosnos girininkija"]
["Pirkimo objekto dalies numeris",null,null,30]
["1.","Želdavietės paruošimas miško sodmenų sodinimui šalinant nepageidaujamus medžius, krūmus, žolinę augmeniją","ha",15]
["2.","Medynų ir krūmynų pertvarkymo kirtimai šalinant nepageidaujamus medžius, krūmus, žolinę augmeniją "]
["3.","Miško želdinių ir žėlinių  priežiūra šalinant žabus ir žolinę augmeniją","ha"]
["4.","Jaunuolynų ugdymas ir/ar retinimo kirtimai, negaminant likvidinės medienos ","ha"]
["5.","Griovių šlaitų ir pagriovių priežiūra","ha"]
["6.","Pakelių priežiūra","km"]
["7.","kvartalinių ir ribinių linijų priežūra","km"]
[null,null,null,{"$f":"+D5*301+D7*263+D8*299+D9*301+D10*53+D11*126+D6*301","v":4515}]
[null,null,null,{"$f":"+D12*3*1.3","v":17608.5}]
[]
["4.","Želdinių, žėlinių apsauga nuo kanopinių žvėrių daromos žalos, tveriant vielos tinklo tvorą","Preliminarios paslaugų apimtys"]
[null,null,"Mato vnt.","Grūto ir Latežerio girininkijos","Leipalingio ir Krosnos girininkija","Kapčiamiesčio girininkija"]
["Pirkimo objekto dalies numeris",null,null,31,32,33]
["11.","Želdinių, žėlinių apsauga nuo kanopinių žvėrių daromos žalos, tveriant vielos tinklo tvorą ","m",4500,5000,8000]
[null,null,null,{"$f":"+D18*1.85","v":8325},{"$f":"+E18*1.85","v":9250},14800]
[null,null,null,{"$f":"+D19*3*1.3","v":32467.5},{"$f":"+E19*3*1.3","v":36075},57720]

{"sheet":"Dubrava","index":3,"n_rows":16,"n_cols":7,"rows_kept":16,"cut":false,"hidden":false,"merged":[[0,0,0,15],[1,0,2,0],[1,3,1,6],[10,0,11,0],[10,1,11,1],[12,0,12,2],[10,2,10,3],[1,1,2,1],[1,2,2,2],[3,0,3,2]]}
["VĮ Valstybinių miškų urėdijos Dubravos regioninio padalinio informacija apie perkamus rangos paslaugų kiekius 2025 metams"]
["3.","Miško sodmenų sodinimas, želdinių ir žėlinių medelių ir jų liemenų apsauga nuo kanopinių žvėrių bei vabzdžių daromos žalos  ","Mato vnt.","Preliminarios paslaugų apimtys"]
[null,null,null,"Sitkūnų girininkija","Padauguvos girininkija","Upninkų girininkija","Karmėlavos girininkija"]
["Pirkimo objekto dalies numeris",null,null,34,35,36,37]
["8.","Miško atkūrimas, įveisimas ir atsodinimas (medelių ir krūmų sodinimas)","tūkst. vnt."]
["9.","Želdinių, žėlinių apsauga nuo kanopinių žvėrių bei vabzdžių daromos žalos ","tūkst. vnt.",300,210,150,150]
["10.","Želdinių, žėlinių ir medelių kamienų apsauga nuo kanopinių žvėrių daromos žalos","tūkst. vnt."]
[null,null,null,{"$f":"+D5*178+D6*27+D7*390","v":8100},{"$f":"+E5*178+E6*27+E7*390","v":5670},4050,{"$f":"+G5*178+G6*27+G7*390","v":4050}]
[null,null,null,{"$f":"+D8*3*1.3","v":31590},{"$f":"+E8*3*1.3","v":22113},15795,{"$f":"+G8*3*1.3","v":15795}]
[]
["6.","Šiukšlių rinkimo paslaugos","Preliminarios paslaugų apimtys"]
[null,null,"Mato vnt.","Dubravos RP teritorija"]
["Pirkimo objekto dalies numeris",null,null,38]
["12.","Šiukšlių rinkimo paslaugos","val.",420]
[null,null,null,{"$f":"+D14*10","v":4200}]
[null,null,null,{"$f":"+D15*3*1.3","v":16380}]

{"sheet":"Ignalina","index":4,"n_rows":20,"n_cols":4,"rows_kept":20,"cut":false,"hidden":false,"merged":[[16,0,16,2],[14,2,14,3],[3,0,3,2],[0,0,0,15],[1,2,1,3],[14,0,15,0],[14,1,15,1]]}
["VĮ Valstybinių miškų urėdijos Ignalinos regioninio padalinio informacija apie perkamus rangos paslaugų kiekius 2025 metams"]
["Eil. ","Paslaugų grupės ir paslaugų pavadinimai","Preliminarios paslaugų apimtys"]
[1,"Želdaviečių paruošimas miškų sodinimui, želdinių ir žėlinių priežiūra, jaunuolynų ugdymas, griovių šlaitų ir pagriovių, pakelių, kvartalinių ir ribinių linijų priežiūra","Mato vnt.","Dūkšto girininkija"]
["Pirkimo objekto dalies numeris",null,null,39]
["1.","Želdavietės paruošimas miško sodmenų sodinimui šalinant nepageidaujamus medžius, krūmus, žolinę augmeniją","ha"]
["2.","Medynų ir krūmynų pertvarkymo kirtimai šalinant nepageidaujamus medžius, krūmus, žolinę augmeniją ","ha"]
["3.","Miško želdinių ir žėlinių  priežiūra šalinant žabus ir žolinę augmeniją","ha",40]
["4.","Jaunuolynų ugdymas ir/ar retinimo kirtimai, negaminant likvidinės medienos ","ha"]
["5.","Griovių šlaitų ir pagriovių priežiūra","ha"]
["6.","Pakelių priežiūra","km"]
["7.","kvartalinių ir ribinių linijų priežūra","km"]
[null,null,null,{"$f":"+D5*301+D7*263+D8*299+D9*301+D10*53+D11*126+D6*301","v":10520}]
[null,null,null,{"$f":"+D12*3*1.3","v":41028}]
[]
["4.","Želdinių, žėlinių apsauga nuo kanopinių žvėrių daromos žalos, tveriant vielos tinklo tvorą","Preliminarios paslaugų apimtys"]
[null,null,"Mato vnt.","Ignalinos RP "]
["Pirkimo objekto dalies numeris",null,null,40]
["11.","Želdinių, žėlinių apsauga nuo kanopinių žvėrių daromos žalos, tveriant vielos tinklo tvorą ","m",3000]
[null,null,null,{"$f":"+D18*1.85","v":5550}]
[null,null,null,{"$f":"+D19*3*1.3","v":21645}]

{"sheet":"Jurbarkas","index":5,"n_rows":13,"n_cols":6,"rows_kept":13,"cut":false,"hidden":false,"merged":[[3,0,3,2],[0,0,0,9],[1,2,1,5]]}
["VĮ Valstybinių miškų urėdijos Jurbarko regioninio padalinio informacija apie perkamus rangos paslaugų kiekius 2025 metams"]
["Eil. ","Paslaugų grupės ir paslaugų pavadinimai","Preliminarios paslaugų apimtys"]
[1,"Želdaviečių paruošimas miškų sodinimui, želdinių ir žėlinių priežiūra, jaunuolynų ugdymas, griovių šlaitų ir pagriovių, pakelių, kvartalinių ir ribinių linijų priežiūra","Mato vnt.","Kalvelių girininkija","Pašvenčio girininkija","Balandinės girininkija"]
["Pirkimo objekto dalies numeris",null,null,41,42,43]
["1.","Želdavietės paruošimas miško sodmenų sodinimui šalinant nepageidaujamus medžius, krūmus, žolinę augmeniją","ha",0,5.3,0]
["2.","Medynų ir krūmynų pertvarkymo kirtimai šalinant nepageidaujamus medžius, krūmus, žolinę augmeniją ","ha",0,0,0]
["3.","Miško želdinių ir žėlinių  priežiūra šalinant žabus ir žolinę augmeniją","ha",154.1,50,0]
["4.","Jaunuolynų ugdymas ir/ar retinimo kirtimai, negaminant likvidinės medienos ","ha",21,15,0]
["5.","Griovių šlaitų ir pagriovių priežiūra","ha",4,3.4,0]
["6.","Pakelių priežiūra","km",0,0,0]
["7.","kvartalinių ir ribinių linijų priežūra","km",20,0,10]
[null,null,null,{"$f":"+D5*301+D7*263+D8*299+D9*301+D10*53+D11*126+D6*301","v":50531.299999999996},{"$f":"+E5*301+E7*263+E8*299+E9*301+E10*53+E11*126","v":20253.7},1260]
[null,null,null,{"$f":"+D12*3*1.3","v":197072.07},{"$f":"+E12*3*1.3","v":78989.430000000008},4914]

{"sheet":"Kazlų Rūda","index":6,"n_rows":20,"n_cols":11,"rows_kept":20,"cut":false,"hidden":false,"merged":[[0,0,0,15],[1,2,1,10],[14,0,15,0],[14,1,15,1],[16,0,16,2],[14,2,14,3],[3,0,3,2]]}
["VĮ Valstybinių miškų urėdijos Kazlų Rūdos  regioninio padalinio informacija apie perkamus rangos paslaugų kiekius 2025 metams"]
["Eil. ","Paslaugų grupės ir paslaugų pavadinimai","Preliminarios paslaugų apimtys"]
[1,"Želdaviečių paruošimas miškų sodinimui, želdinių ir žėlinių priežiūra, jaunuolynų ugdymas, griovių šlaitų ir pagriovių, pakelių, kvartalinių ir ribinių linijų priežiūra","Mato vnt.","Agurkiškės girininkija","Bagotosios girininkija","Jūrės girininkija","Kalvarijos girininkija","Kazlų Rūdos girininkija","Novos girininkija","Pajevonio girininkija","Varnabūdės girininkija"]
["Pirkimo objekto dalies numeris",null,null,44,45,46,47,48,49,50,51]
["1.","Želdavietės paruošimas miško sodmenų sodinimui šalinant nepageidaujamus medžius, krūmus, žolinę augmeniją","ha"]
["2.","Medynų ir krūmynų pertvarkymo kirtimai šalinant nepageidaujamus medžius, krūmus, žolinę augmeniją "]
["3.","Miško želdinių ir žėlinių  priežiūra šalinant žabus ir žolinę augmeniją","ha"]
["4.","Jaunuolynų ugdymas ir/ar retinimo kirtimai, negaminant likvidinės medienos ","ha",9,41,16,43,15,18.5,29,27]
["5.","Griovių šlaitų ir pagriovių priežiūra","ha"]
["6.","Pakelių priežiūra","km"]
["7.","kvartalinių ir ribinių linijų priežūra","km"]
[null,null,null,{"$f":"+D5*301+D7*263+D8*299+D9*301+D10*53+D11*126+D6*301","v":2691},{"$f":"+E5*301+E7*263+E8*299+E9*301+E10*53+E11*126","v":12259},4784,12857,4485,5531.5,8671,8073]
[null,null,null,{"$f":"+D12*3*1.3","v":10494.9},{"$f":"+E12*3*1.3","v":47810.1},18657.600000000002,50142.3,17491.5,21572.850000000002,33816.9,31484.7]
[]
["6.","Šiukšlių rinkimo paslaugos","Preliminarios paslaugų apimtys"]
[null,null,"Mato vnt.","Kazlų Rūdos RP teritorija"]
["Pirkimo objekto dalies numeris",null,null,52]
["12.","Šiukšlių rinkimo paslaugos","val.",370]
[null,null,null,{"$f":"+D18*10","v":3700}]
[null,null,null,{"$f":"+D19*3*1.3","v":14430}]

{"sheet":"Kretinga","index":7,"n_rows":29,"n_cols":6,"rows_kept":29,"cut":false,"hidden":false,"merged":[[3,0,3,2],[14,2,14,5],[0,0,0,11],[14,0,15,0],[14,1,15,1],[1,2,1,3],[23,0,24,0],[23,1,24,1],[23,2,23,3],[25,0,25,2],[16,0,16,2]]}
["VĮ Valstybinių miškų urėdijos Kretingos regioninio padalinio informacija apie perkamus rangos paslaugų kiekius 2025 metams"]
["Eil. ","Paslaugų grupės ir paslaugų pavadinimai","Preliminarios paslaugų apimtys"]
[1,"Želdaviečių paruošimas miškų sodinimui, želdinių ir žėlinių priežiūra, jaunuolynų ugdymas, griovių šlaitų ir pagriovių, pakelių, kvartalinių ir ribinių linijų priežiūra","Mato vnt.","Juodkrantės, Nidos girininkijos 1"]
["Pirkimo objekto dalies numeris",null,null,53]
["1.","Želdavietės paruošimas miško sodmenų sodinimui šalinant nepageidaujamus medžius, krūmus, žolinę augmeniją","ha"]
["2.","Medynų ir krūmynų pertvarkymo kirtimai šalinant nepageidaujamus medžius, krūmus, žolinę augmeniją ","ha",30]
["3.","Miško želdinių ir žėlinių  priežiūra šalinant žabus ir žolinę augmeniją","ha"]
["4.","Jaunuolynų ugdymas ir/ar retinimo kirtimai, negaminant likvidinės medienos ","ha"]
["5.","Griovių šlaitų ir pagriovių priežiūra","ha"]
["6.","Pakelių priežiūra","km"]
["7.","kvartalinių ir ribinių linijų priežūra","km"]
[null,null,null,{"$f":"+D5*301+D7*263+D8*299+D9*301+D10*53+D11*126+D6*301","v":9030}]
[null,null,null,{"$f":"+D12*3*1.3","v":35217}]
[]
["3.","Miško sodmenų sodinimas, želdinių ir žėlinių medelių ir jų liemenų apsauga nuo kanopinių žvėrių bei vabzdžių daromos žalos  ","Preliminarios paslaugų apimtys"]
[null,null,"Mato vnt.","Juodkrantės, Nidos girininkijos 2","Juodkrantės, Nidos girininkijos 3","Juodkrantės, Nidos girininkijos 4"]
["Pirkimo objekto dalies numeris",null,null,54,55,56]
["8.","Miško atkūrimas, įveisimas ir atsodinimas (medelių ir krūmų sodinimas)","tūkst. vnt.",30,15,15]
["9.","Želdinių, žėlinių apsauga nuo kanopinių žvėrių bei vabzdžių daromos žalos ","tūkst. vnt."]
["10.","Želdinių, žėlinių ir medelių kamienų apsauga nuo kanopinių žvėrių daromos žalos","tūkst. vnt."]
[null,null,null,{"$f":"+D18*178+D19*27+D20*390","v":5340},{"$f":"+E18*178+E19*27+E20*390","v":2670},2670]
[null,null,null,{"$f":"+D21*3*1.3","v":20826},{"$f":"+E21*3*1.3","v":10413},10413]
[]
["6.","Šiukšlių rinkimo paslaugos","Preliminarios paslaugų apimtys"]
[null,null,"Mato vnt.","Šernų girininkija"]
["Pirkimo objekto dalies numeris",null,null,57]
["12.","Šiukšlių rinkimo paslaugos","val.",300]
[null,null,null,{"$f":"+D27*10","v":3000}]
[null,null,null,{"$f":"+D28*3*1.3","v":11700}]

{"sheet":"Kuršėnai","index":8,"n_rows":36,"n_cols":5,"rows_kept":36,"cut":false,"hidden":false,"merged":[[0,0,0,8],[1,2,1,4],[14,0,15,0],[14,1,15,1],[16,0,16,2],[14,2,14,3],[23,0,24,0],[23,1,24,1],[3,0,3,2],[32,0,32,2],[30,2,30,3],[25,0,25,2],[23,2,23,3],[30,0,31,0],[30,1,31,1]]}
["VĮ Valstybinių miškų urėdijos    Kuršėnų  regioninio padalinio informacija apie perkamus rangos paslaugų kiekius 2025 metams"]
["Eil. ","Paslaugų grupės ir paslaugų pavadinimai","Preliminarios paslaugų apimtys"]
[1,"Želdaviečių paruošimas miškų sodinimui, želdinių ir žėlinių priežiūra, jaunuolynų ugdymas, griovių šlaitų ir pagriovių, pakelių, kvartalinių ir ribinių linijų priežiūra","Mato vnt.","Meškuičių  girininkija","Šaukėnų, Paežerių girininkijos"]
["Pirkimo objekto dalies numeris",null,null,58,59]
["1.","Želdavietės paruošimas miško sodmenų sodinimui šalinant nepageidaujamus medžius, krūmus, žolinę augmeniją","ha"]
["2.","Medynų ir krūmynų pertvarkymo kirtimai šalinant nepageidaujamus medžius, krūmus, žolinę augmeniją "]
["3.","Miško želdinių ir žėlinių  priežiūra šalinant žabus ir žolinę augmeniją","ha",40,80]
["4.","Jaunuolynų ugdymas ir/ar retinimo kirtimai, negaminant likvidinės medienos ","ha",5,10]
["5.","Griovių šlaitų ir pagriovių priežiūra","ha"]
["6.","Pakelių priežiūra","km"]
["7.","kvartalinių ir ribinių linijų priežūra","km",5,5]
[null,null,null,{"$f":"+D5*301+D7*263+D8*299+D9*301+D10*53+D11*126+D6*301","v":12645},{"$f":"+E5*301+E7*263+E8*299+E9*301+E10*53+E11*126+E6*301","v":24660}]
[null,null,null,{"$f":"+D12*3*1.3","v":49315.5},{"$f":"+E12*3*1.3","v":96174}]
[]
["3.","Miško sodmenų sodinimas, želdinių ir žėlinių medelių ir jų liemenų apsauga nuo kanopinių žvėrių bei vabzdžių daromos žalos  ","Preliminarios paslaugų apimtys"]
[null,null,"Mato vnt.","Pažiužmėlių girininkija"]
["Pirkimo objekto dalies numeris",null,null,60]
["8.","Miško atkūrimas, įveisimas ir atsodinimas (medelių ir krūmų sodinimas)","tūkst. vnt.",20]
["9.","Želdinių, žėlinių apsauga nuo kanopinių žvėrių bei vabzdžių daromos žalos ","tūkst. vnt.",100]
["10.","Želdinių, žėlinių ir medelių kamienų apsauga nuo kanopinių žvėrių daromos žalos","tūkst. vnt.",6]
[null,null,null,{"$f":"+D18*178+D19*27+D20*390","v":8600}]
[null,null,null,{"$f":"+D21*3*1.3","v":33540}]
[]
["4.","Želdinių, žėlinių apsauga nuo kanopinių žvėrių daromos žalos, tveriant vielos tinklo tvorą","Preliminarios paslaugų apimtys"]
[null,null,"Mato vnt.","Kuršėnų RP 1"]
["Pirkimo objekto dalies numeris",null,null,61]
["11.","Želdinių, žėlinių apsauga nuo kanopinių žvėrių daromos žalos, tveriant vielos tinklo tvorą ","m",4000]
[null,null,null,{"$f":"+D27*1.85","v":7400}]
[null,null,null,{"$f":"+D28*3*1.3","v":28860}]
[]
["6.","Šiukšlių rinkimo paslaugos","Preliminarios paslaugų apimtys"]
[null,null,"Mato vnt.","Kuršėnų RP 2"]
["Pirkimo objekto dalies numeris",null,null,62]
["12.","Šiukšlių rinkimo paslaugos","val.",350]
[null,null,null,{"$f":"+D34*10","v":3500}]
[null,null,null,{"$f":"+D35*3*1.3","v":13650}]

{"sheet":"Panevėžys","index":9,"n_rows":20,"n_cols":4,"rows_kept":20,"cut":false,"hidden":false,"merged":[[14,0,15,0],[14,1,15,1],[14,2,15,2],[16,0,16,2],[0,0,0,7],[3,0,3,2],[1,2,2,2]]}
["VĮ Valstybinių miškų urėdijos Panevėžio  regioninio padalinio informacija apie perkamus rangos paslaugų kiekius 2025 metams"]
["Eil. ","Paslaugų grupės ir paslaugų pavadinimai","Mato vnt.","Preliminarios paslaugų apimtys"]
[1,"Želdaviečių paruošimas miškų sodinimui, želdinių ir žėlinių priežiūra, jaunuolynų ugdymas, griovių šlaitų ir pagriovių, pakelių, kvartalinių ir ribinių linijų priežiūra",null,"Rozalimo girininkija"]
["Pirkimo objekto dalies numeris",null,null,63]
["1.","Želdavietės paruošimas miško sodmenų sodinimui šalinant nepageidaujamus medžius, krūmus, žolinę augmeniją","ha",0]
["2.","Medynų ir krūmynų pertvarkymo kirtimai šalinant nepageidaujamus medžius, krūmus, žolinę augmeniją ",null,0]
["3.","Miško želdinių ir žėlinių  priežiūra šalinant žabus ir žolinę augmeniją","ha",45]
["4.","Jaunuolynų ugdymas ir/ar retinimo kirtimai, negaminant likvidinės medienos ","ha",35]
["5.","Griovių šlaitų ir pagriovių priežiūra","ha",1]
["6.","Pakelių priežiūra","km",0]
["7.","kvartalinių ir ribinių linijų priežūra","km",10]
[null,null,null,{"$f":"+D5*301+D7*263+D8*299+D9*301+D10*53+D11*126+D6*301","v":23861}]
[null,null,null,{"$f":"+D12*3*1.3","v":93057.900000000009}]
[]
[6,"Šiukšlių rinkimo paslaugos","Mato vnt.","Preliminarios paslaugų apimtys"]
[null,null,null,"Panevėžio RP "]
["Pirkimo objekto dalies numeris",null,null,64]
["11.","Šiukšlių rinkimo paslaugos","val",600]
[null,null,null,{"$f":"+D18*10","v":6000}]
[null,null,null,{"$f":"+D19*3*1.3","v":23400}]

{"sheet":"Prienai","index":10,"n_rows":14,"n_cols":4,"rows_kept":14,"cut":false,"hidden":false,"merged":[[10,0,10,2],[3,0,3,2],[0,0,0,11],[1,0,2,0],[1,1,2,1],[1,2,1,3],[8,0,9,0],[8,1,9,1],[8,2,9,2]]}
["VĮ Valstybinių miškų urėdijos Prienų  regioninio padalinio informacija apie perkamus rangos paslaugų kiekius 2025 metams"]
[2,"Želdavietės paruošimas miško sodmenų sodinimui cheminiu būdu pašalinant nepageidaujamą augmeniją ","Preliminarios paslaugų apimtys"]
[null,null,"Mato vnt.","Prienų RP 1"]
["Pirkimo objekto dalies numeris",null,null,65]
["7.","Želdavietės paruošimas miško sodmenų sodinimui cheminiu būdu pašalinant nepageidaujamą augmeniją","ha",30]
[null,null,null,{"$f":"+D5*111","v":3330}]
[null,null,null,{"$f":"+D6*3*1.3","v":12987}]
[]
[6,"Šiukšlių rinkimo paslaugos","Mato vnt.","Preliminarios paslaugų apimtys"]
[null,null,null,"Prienų RP 2"]
["Pirkimo objekto dalies numeris",null,null,66]
["11.","Šiukšlių rinkimo paslaugos","val",550]
[null,null,null,{"$f":"+D12*10","v":5500}]
[null,null,null,{"$f":"+D13*3*1.3","v":21450}]

{"sheet":"Radviliškis","index":11,"n_rows":9,"n_cols":5,"rows_kept":9,"cut":false,"hidden":false,"merged":[[1,0,2,0],[1,1,2,1],[3,0,3,2],[1,2,1,4],[0,0,0,11]]}
["VĮ Valstybinių miškų urėdijos Radviliškio regioninio padalinio informacija apie perkamus rangos paslaugų kiekius 2025 metams"]
["3.","Miško sodmenų sodinimas, želdinių ir žėlinių medelių ir jų liemenų apsauga nuo kanopinių žvėrių bei vabzdžių daromos žalos  ","Preliminarios paslaugų apimtys"]
[null,null,"Mato vnt.","Baisogalos girininkija ","Legečių, Pašušvio, Radviliškio girininkijos"]
["Pirkimo objekto dalies numeris",null,null,67,68]
["8.","Miško atkūrimas, įveisimas ir atsodinimas (medelių ir krūmų sodinimas)","tūkst. vnt."]
["9.","Želdinių, žėlinių apsauga nuo kanopinių žvėrių bei vabzdžių daromos žalos ","tūkst. vnt.",139.5]
["10.","Želdinių, žėlinių ir medelių kamienų apsauga nuo kanopinių žvėrių daromos žalos","tūkst. vnt.",40,56.5]
[null,null,null,{"$f":"+D5*178+D6*27+D7*390","v":19366.5},22035]
[null,null,null,{"$f":"+D8*3*1.3","v":75529.350000000006},85936.5]

{"sheet":"Raseiniai","index":12,"n_rows":32,"n_cols":4,"rows_kept":32,"cut":false,"hidden":false,"merged":[[9,0,10,0],[9,1,10,1],[9,2,10,2],[19,0,20,0],[19,1,20,1],[19,2,20,2],[0,0,0,7],[3,0,3,2],[1,0,2,0],[1,1,2,1],[1,2,1,3],[28,0,28,2],[26,0,27,0],[26,1,27,1],[26,2,27,2],[11,0,11,2],[21,0,21,2]]}
["VĮ Valstybinių miškų urėdijos Raseinių regioninio padalinio informacija apie perkamus rangos paslaugų kiekius 2025 metams"]
[2,"Želdavietės paruošimas miško sodmenų sodinimui cheminiu būdu pašalinant nepageidaujamą augmeniją ","Preliminarios paslaugų apimtys"]
[null,null,"Mato vnt.","Raseinių RP 1"]
["Pirkimo objekto dalies numeris",null,null,69]
["7.","Želdavietės paruošimas miško sodmenų sodinimui cheminiu būdu pašalinant nepageidaujamą augmeniją","ha",93]
[null,null,null,{"$f":"+D5*111","v":10323}]
[null,null,null,{"$f":"+D6*3*1.3","v":40259.700000000004}]
[]
[]
["3.","Miško sodmenų sodinimas, želdinių ir žėlinių medelių ir jų liemenų apsauga nuo kanopinių žvėrių bei vabzdžių daromos žalos  ","Mato vnt.","Preliminarios paslaugų apimtys"]
[null,null,null,"Tytuvėnų girininkija"]
["Pirkimo objekto dalies numeris",null,null,70]
["8.","Miško atkūrimas, įveisimas ir atsodinimas (medelių ir krūmų sodinimas)","tūkst. vnt."]
["9.","Želdinių, žėlinių apsauga nuo kanopinių žvėrių bei vabzdžių daromos žalos ","tūkst. vnt.",250]
["10.","Želdinių, žėlinių ir medelių kamienų apsauga nuo kanopinių žvėrių daromos žalos","tūkst. vnt.",30]
[null,null,null,{"$f":"+D13*178+D14*27+D15*390","v":18450}]
[null,null,null,{"$f":"+D16*3*1.3","v":71955}]
[]
[]
["5.","Sodmenų transportavimo paslaugos","Mato vnt.","Preliminarios paslaugų apimtys"]
[null,null,null,"Viduklės girininkija"]
["Pirkimo objekto dalies numeris",null,null,71]
["12.","Sodmenų transportavimo paslaugos ","km",100]
[null,null,null,{"$f":"+D23*1.5","v":150}]
[null,null,null,{"$f":"+D24*3*1.3","v":585}]
[]
[6,"Šiukšlių rinkimo paslaugos","Mato vnt.","Preliminarios paslaugų apimtys"]
[null,null,null,"Raseinių RP 2"]
["Pirkimo objekto dalies numeris",null,null,72]
["11.","Šiukšlių rinkimo paslaugos","m",120]
[null,null,null,{"$f":"+D30*10","v":1200}]
[null,null,null,{"$f":"+D31*3*1.3","v":4680}]

{"sheet":"Rokiškis","index":13,"n_rows":9,"n_cols":4,"rows_kept":9,"cut":false,"hidden":false,"merged":[[0,0,0,4],[1,0,2,0],[1,1,2,1],[1,2,2,2],[3,0,3,2]]}
["VĮ Valstybinių miškų urėdijos Rokiškio regioninio padalinio informacija apie perkamus rangos paslaugų kiekius 2025 metams"]
["3.","Miško sodmenų sodinimas, želdinių ir žėlinių medelių ir jų liemenų apsauga nuo kanopinių žvėrių bei vabzdžių daromos žalos  ","Mato vnt.","Preliminarios paslaugų apimtys"]
[null,null,null,"Kamajų girininkija "]
["Pirkimo objekto dalies numeris",null,null,73]
["8.","Miško atkūrimas, įveisimas ir atsodinimas (medelių ir krūmų sodinimas)","tūkst. vnt.",115]
["9.","Želdinių, žėlinių apsauga nuo kanopinių žvėrių bei vabzdžių daromos žalos ","tūkst. vnt.",5]
["10.","Želdinių, žėlinių ir medelių kamienų apsauga nuo kanopinių žvėrių daromos žalos","tūkst. vnt.",1]
[null,null,null,{"$f":"+D5*178+D6*27+D7*390","v":20995}]
[null,null,null,{"$f":"+D8*3*1.3","v":81880.5}]

{"sheet":"Šilutė","index":14,"n_rows":7,"n_cols":4,"rows_kept":7,"cut":false,"hidden":false,"merged":[[0,0,0,3],[3,0,3,2],[1,0,2,0],[1,1,2,1],[1,2,2,2]]}
["VĮ Valstybinių miškų urėdijos Šilutės regioninio padalinio informacija apie perkamus rangos paslaugų kiekius 2025 metams"]
["6.","Šiukšlių rinkimo paslaugos","Mato vnt.","Preliminarios paslaugų apimtys"]
[null,null,null,"Šilutės girininkija"]
["Pirkimo objekto dalies numeris",null,null,74]
["12.","Šiukšlių rinkimo paslaugos","val.",200]
[null,null,null,{"$f":"+D5*10","v":2000}]
[null,null,null,{"$f":"+D6*3*1.3","v":7800}]

{"sheet":"Telšiai","index":15,"n_rows":16,"n_cols":5,"rows_kept":16,"cut":false,"hidden":false,"merged":[[0,0,0,8],[1,0,2,0],[10,0,11,0],[10,1,11,1],[12,0,12,2],[10,2,10,3],[1,1,2,1],[1,2,2,2],[1,3,1,4],[3,0,3,2]]}
["VĮ Valstybinių miškų urėdijos Telšių regioninio padalinio informacija apie perkamus rangos paslaugų kiekius 2025 metams"]
["3.","Miško sodmenų sodinimas, želdinių ir žėlinių medelių ir jų liemenų apsauga nuo kanopinių žvėrių bei vabzdžių daromos žalos  ","Mato vnt.","Preliminarios paslaugų apimtys"]
[null,null,null,"Rietavo girininkijoje","Kulių girininkijoje"]
["Pirkimo objekto dalies numeris",null,null,75,76]
["8.","Miško atkūrimas, įveisimas ir atsodinimas (medelių ir krūmų sodinimas)","tūkst. vnt.",15,20]
["9.","Želdinių, žėlinių apsauga nuo kanopinių žvėrių bei vabzdžių daromos žalos ","tūkst. vnt.",15,30]
["10.","Želdinių, žėlinių ir medelių kamienų apsauga nuo kanopinių žvėrių daromos žalos","tūkst. vnt.",0,0]
[null,null,null,{"$f":"+D5*178+D6*27+D7*390","v":3075},{"$f":"+E5*178+E6*27+E7*390","v":4370}]
[null,null,null,{"$f":"+D8*3*1.3","v":11992.5},{"$f":"+E8*3*1.3","v":17043}]
[]
["6.","Šiukšlių rinkimo paslaugos","Preliminarios paslaugų apimtys"]
[null,null,"Mato vnt.","Telšių RP teritorijoje"]
["Pirkimo objekto dalies numeris",null,null,77]
["12.","Šiukšlių rinkimo paslaugos","val.",223]
[null,null,null,{"$f":"+D14*10","v":2230}]
[null,null,null,{"$f":"+D15*3*1.3","v":8697}]

{"sheet":"Trakai","index":16,"n_rows":23,"n_cols":7,"rows_kept":23,"cut":false,"hidden":false,"merged":[[19,0,19,2],[17,2,17,3],[12,0,12,2],[0,0,0,11],[1,0,2,0],[1,1,2,1],[1,2,2,2],[17,0,18,0],[17,1,18,1],[3,0,3,2],[10,0,11,0],[10,1,11,1],[10,2,10,3],[1,3,1,6]]}
["VĮ Valstybinių miškų urėdijos Trakų regioninio padalinio informacija apie perkamus rangos paslaugų kiekius 2025 metams"]
["3.","Miško sodmenų sodinimas, želdinių ir žėlinių medelių ir jų liemenų apsauga nuo kanopinių žvėrių bei vabzdžių daromos žalos  ","Mato vnt.","Preliminarios paslaugų apimtys"]
[null,null,null,"Semeliškių girininkija 1","Semeliškių girininkija 2","Vievio girininkija 1","Vievio girininkija 2"]
["Pirkimo objekto dalies numeris",null,null,78,79,80,81]
["8.","Miško atkūrimas, įveisimas ir atsodinimas (medelių ir krūmų sodinimas)","tūkst. vnt.",80,80,120,120]
["9.","Želdinių, žėlinių apsauga nuo kanopinių žvėrių bei vabzdžių daromos žalos ","tūkst. vnt.",100,100,400,400]
["10.","Želdinių, žėlinių ir medelių kamienų apsauga nuo kanopinių žvėrių daromos žalos","tūkst. vnt.",5,5,22,22]
[null,null,null,{"$f":"+D5*178+D6*27+D7*390","v":18890},{"$f":"+E5*178+E6*27+E7*390","v":18890},40740,40740]
[null,null,null,{"$f":"+D8*3*1.3","v":73671},{"$f":"+E8*3*1.3","v":73671},158886,158886]
[]
["5.","Sodmenų transportavimo paslaugos","Preliminarios paslaugų apimtys"]
[null,null,"Mato vnt.","Trakų RP 1"]
["Pirkimo objekto dalies numeris",null,null,82]
["12.","Sodmenų transportavimo paslaugos ","km",5000]
[null,null,null,{"$f":"+D14*1.5","v":7500}]
[null,null,null,{"$f":"+D15*3*1.3","v":29250}]
[]
["6.","Šiukšlių rinkimo paslaugos","Preliminarios paslaugų apimtys"]
[null,null,"Mato vnt.","Trakų RP 2"]
["Pirkimo objekto dalies numeris",null,null,83]
["12.","Šiukšlių rinkimo paslaugos","val.",805]
[null,null,null,{"$f":"+D21*10","v":8050}]
[null,null,null,{"$f":"+D22*3*1.3","v":31395}]

{"sheet":"Ukmergės","index":17,"n_rows":22,"n_cols":6,"rows_kept":22,"cut":false,"hidden":false,"merged":[[16,0,16,2],[1,2,1,5],[3,0,3,2],[0,0,0,7],[14,0,15,0],[14,1,15,1],[14,2,14,3]]}
["VĮ Valstybinių miškų urėdijos  Ukmergės regioninio padalinio informacija apie perkamus rangos paslaugų kiekius 2025 metams"]
["Eil. ","Paslaugų grupės ir paslaugų pavadinimai","Preliminarios paslaugų apimtys"]
[1,"Želdaviečių paruošimas miškų sodinimui, želdinių ir žėlinių priežiūra, jaunuolynų ugdymas, griovių šlaitų ir pagriovių, pakelių, kvartalinių ir ribinių linijų priežiūra","Mato vnt.","Taujėnų girininkija 1","Taujėnų girininkija  2","Taujėnų girininkija 3"]
["Pirkimo objekto dalies numeris",null,null,84,85,86]
["1.","Želdavietės paruošimas miško sodmenų sodinimui šalinant nepageidaujamus medžius, krūmus, žolinę augmeniją","ha"]
["2.","Medynų ir krūmynų pertvarkymo kirtimai šalinant nepageidaujamus medžius, krūmus, žolinę augmeniją "]
["3.","Miško želdinių ir žėlinių  priežiūra šalinant žabus ir žolinę augmeniją","ha",40,70,70]
["4.","Jaunuolynų ugdymas ir/ar retinimo kirtimai, negaminant likvidinės medienos ","ha",20,30,30]
["5.","Griovių šlaitų ir pagriovių priežiūra","ha",3,6,6]
["6.","Pakelių priežiūra","km",3,6,6]
["7.","kvartalinių ir ribinių linijų priežūra","km",6,12,12]
[null,null,null,{"$f":"+D5*301+D7*263+D8*299+D9*301+D10*53+D11*126+D6*301","v":18318},{"$f":"+E5*301+E7*263+E8*299+E9*301+E10*53+E11*126","v":31016},31016]
[null,null,null,{"$f":"+D12*3*1.3","v":71440.2},{"$f":"+E12*3*1.3","v":120962.40000000001},120962.40000000001]
[]
["3.","Miško sodmenų sodinimas, želdinių ir žėlinių medelių ir jų liemenų apsauga nuo kanopinių žvėrių bei vabzdžių daromos žalos  ","Preliminarios paslaugų apimtys"]
[null,null,"Mato vnt.","Giedraičių girininkija"]
["Pirkimo objekto dalies numeris",null,null,87]
["8.","Miško atkūrimas, įveisimas ir atsodinimas (medelių ir krūmų sodinimas)","tūkst. vnt.",60]
["9.","Želdinių, žėlinių apsauga nuo kanopinių žvėrių bei vabzdžių daromos žalos ","tūkst. vnt.",10]
["10.","Želdinių, žėlinių ir medelių kamienų apsauga nuo kanopinių žvėrių daromos žalos","tūkst. vnt."]
[null,null,null,{"$f":"+D18*178+D19*27+D20*390","v":10950}]
[null,null,null,{"$f":"+D21*3*1.3","v":42705}]

{"sheet":"Varėna","index":18,"n_rows":16,"n_cols":4,"rows_kept":16,"cut":false,"hidden":false,"merged":[[12,0,12,2],[1,2,1,3],[3,0,3,2],[0,0,0,9],[1,0,2,0],[1,1,2,1],[10,0,11,0],[10,1,11,1],[10,2,10,3]]}
["VĮ Valstybinių miškų urėdijos Varėnos regioninio padalinio informacija apie perkamus rangos paslaugų kiekius 2025 metams"]
["3.","Miško sodmenų sodinimas, želdinių ir žėlinių medelių ir jų liemenų apsauga nuo kanopinių žvėrių bei vabzdžių daromos žalos  ","Preliminarios paslaugų apimtys"]
[null,null,"Mato vnt.","Varėnos RP 1"]
["Pirkimo objekto dalies numeris",null,null,88]
["8.","Miško atkūrimas, įveisimas ir atsodinimas (medelių ir krūmų sodinimas)","tūkst. vnt."]
["9.","Želdinių, žėlinių apsauga nuo kanopinių žvėrių bei vabzdžių daromos žalos ","tūkst. vnt."]
["10.","Želdinių, žėlinių ir medelių kamienų apsauga nuo kanopinių žvėrių daromos žalos","tūkst. vnt.",50]
[null,null,null,{"$f":"+D5*178+D6*27+D7*390","v":19500}]
[null,null,null,{"$f":"+D8*3*1.3","v":76050}]
[]
["4.","Želdinių, žėlinių apsauga nuo kanopinių žvėrių daromos žalos, tveriant vielos tinklo tvorą","Preliminarios paslaugų apimtys"]
[null,null,"Mato vnt.","Varėnos RP 2"]
["Pirkimo objekto dalies numeris",null,null,89]
["11.","Želdinių, žėlinių apsauga nuo kanopinių žvėrių daromos žalos, tveriant vielos tinklo tvorą ","m",2000]
[null,null,null,{"$f":"+D14*1.85","v":3700}]
[null,null,null,{"$f":"+D15*3*1.3","v":14430}]